[Event "Early-Titled-Tuesday-Blitz-July-09-2024"]
[Site "Chess.com"]
[Date "2024.07.09"]
[Round "5"]
[White "Naruto75_3"]
[Black "orackbbama"]
[Result "1-0"]
[WhiteElo "2546"]
[BlackElo "2297"]
[TimeControl "180+1"]
[EndTime "8:57:29 PDT"]
[Termination "Naruto75_3 won on time"]

1. d4 {[%clk 0:02:51.3]} 1... Nf6 {[%clk 0:02:59.3]} 2. c4 {[%clk 0:02:49.4]}
2... g6 {[%clk 0:02:59.7]} 3. Nc3 {[%clk 0:02:49.8]} 3... d5 {[%clk 0:03:00.3]}
4. cxd5 {[%clk 0:02:49.7]} 4... Nxd5 {[%clk 0:03:00.9]} 5. e4 {[%clk 0:02:50.4]}
5... Nxc3 {[%clk 0:03:01.4]} 6. bxc3 {[%clk 0:02:51.3]} 6... Bg7 {[%clk
0:03:01.9]} 7. Be3 {[%clk 0:02:52]} 7... c5 {[%clk 0:03:02.4]} 8. Rc1 {[%clk
0:02:52.7]} 8... Qa5 {[%clk 0:03:01.4]} 9. Qd2 {[%clk 0:02:52.9]} 9... O-O
{[%clk 0:03:02]} 10. Nf3 {[%clk 0:02:52.4]} 10... Bg4 {[%clk 0:02:59.6]} 11. Be2
{[%clk 0:02:52.7]} 11... Bxf3 {[%clk 0:02:14.3]} 12. Bxf3 {[%clk 0:02:53.6]}
12... cxd4 {[%clk 0:02:14.5]} 13. cxd4 {[%clk 0:02:51.1]} 13... Qxd2+ {[%clk
0:02:13.9]} 14. Kxd2 {[%clk 0:02:52]} 14... Rd8 {[%clk 0:02:13.2]} 15. e5 {[%clk
0:02:45]} 15... Nc6 {[%clk 0:01:31.4]} 16. Bxc6 {[%clk 0:02:42.1]} 16... bxc6
{[%clk 0:01:31.6]} 17. f4 {[%clk 0:02:41.6]} 17... Rac8 {[%clk 0:01:24.5]} 18.
Rc5 {[%clk 0:02:40.5]} 18... f6 {[%clk 0:01:23.5]} 19. Rhc1 {[%clk 0:02:39.6]}
19... fxe5 {[%clk 0:01:23.5]} 20. fxe5 {[%clk 0:02:40.5]} 20... Rb8 {[%clk
0:01:16.8]} 21. Rxc6 {[%clk 0:02:39.6]} 21... Bxe5 {[%clk 0:01:12.1]} 22. Kc3
{[%clk 0:02:38.3]} 22... Bxh2 {[%clk 0:00:55.3]} 23. Rc2 {[%clk 0:02:37.7]}
23... Bd6 {[%clk 0:00:53.5]} 24. d5 {[%clk 0:02:34.6]} 24... a5 {[%clk
0:00:48.9]} 25. Bb6 {[%clk 0:02:30.9]} 25... Rd7 {[%clk 0:00:43.9]} 26. Bxa5
{[%clk 0:02:27]} 26... Rb5 {[%clk 0:00:43]} 27. Bb6 {[%clk 0:02:23.6]} 27...
Rxd5 {[%clk 0:00:41.3]} 28. Re2 {[%clk 0:02:20.6]} 28... Be5+ {[%clk 0:00:35.5]}
29. Kc4 {[%clk 0:02:19.9]} 29... Bf6 {[%clk 0:00:29.3]} 30. Bc5 {[%clk
0:02:17.6]} 30... Rd3 {[%clk 0:00:22.9]} 31. Rc2 {[%clk 0:02:11.7]} 31... Kf7
{[%clk 0:00:17.5]} 32. a4 {[%clk 0:02:10.7]} 32... Rd2 {[%clk 0:00:17.7]} 33.
Rxd2 {[%clk 0:02:09.9]} 33... Rxd2 {[%clk 0:00:18.3]} 34. a5 {[%clk 0:02:10.1]}
34... Rxg2 {[%clk 0:00:17.2]} 35. a6 {[%clk 0:02:10.3]} 35... Ra2 {[%clk
0:00:17.8]} 36. a7 {[%clk 0:02:10.3]} 36... h5 {[%clk 0:00:16.2]} 37. Rc8 {[%clk
0:02:10.1]} 37... h4 {[%clk 0:00:14.7]} 38. a8=Q {[%clk 0:02:09.1]} 38... Rxa8
{[%clk 0:00:14.8]} 39. Rxa8 {[%clk 0:02:10]} 39... Ke6 {[%clk 0:00:14.7]} 40.
Kd3 {[%clk 0:02:07.3]} 40... Kf5 {[%clk 0:00:15]} 41. Ke2 {[%clk 0:02:06.2]}
41... g5 {[%clk 0:00:15.5]} 42. Kf3 {[%clk 0:02:03.8]} 42... g4+ {[%clk
0:00:15.7]} 43. Kg2 {[%clk 0:02:03]} 43... h3+ {[%clk 0:00:14.8]} 44. Kh1 {[%clk
0:02:00.6]} 44... Ke4 {[%clk 0:00:14]} 45. Ra4+ {[%clk 0:01:59.4]} 45... Kf3
{[%clk 0:00:13.3]} 46. Ra3+ {[%clk 0:01:59.5]} 46... Kf4 {[%clk 0:00:12.7]} 47.
Be3+ {[%clk 0:01:57.3]} 47... Kf3 {[%clk 0:00:11.8]} 48. Bd4+ {[%clk 0:01:52.9]}
48... Kf4 {[%clk 0:00:11.3]} 49. Bf2 {[%clk 0:01:52.7]} 49... e5 {[%clk
0:00:06.7]} 50. Bg3+ {[%clk 0:01:52.6]} 50... Kf5 {[%clk 0:00:07.3]} 51. Kh2
{[%clk 0:01:52.6]} 51... Bg5 {[%clk 0:00:06.2]} 52. Ra5 {[%clk 0:01:51.8]} 52...
Bf4 {[%clk 0:00:05.8]} 53. Rb5 {[%clk 0:01:51.5]} 53... Ke4 {[%clk 0:00:05]} 54.
Rb4+ {[%clk 0:01:50.3]} 54... Kf3 {[%clk 0:00:04.4]} 55. Rb3+ {[%clk 0:01:50]}
55... Ke2 {[%clk 0:00:04.2]} 56. Kg1 {[%clk 0:01:48.5]} 1-0

[Event "Early-Titled-Tuesday-Blitz-July-09-2024"]
[Site "Chess.com"]
[Date "2024.07.09"]
[Round "5"]
[White "Vladimir_Zakhartsov"]
[Black "aquarium76"]
[Result "1-0"]
[WhiteElo "2896"]
[BlackElo "3007"]
[TimeControl "180+1"]
[EndTime "8:57:33 PDT"]
[Termination "Vladimir_Zakhartsov won by resignation"]

1. e4 {[%clk 0:03:00.9]} 1... c5 {[%clk 0:02:58.4]} 2. Nf3 {[%clk 0:03:01.1]}
2... Nc6 {[%clk 0:02:57.8]} 3. d4 {[%clk 0:02:59.3]} 3... cxd4 {[%clk
0:02:56.6]} 4. Nxd4 {[%clk 0:03:00.2]} 4... e6 {[%clk 0:02:56.2]} 5. g3 {[%clk
0:02:57.7]} 5... a6 {[%clk 0:02:42.9]} 6. Bg2 {[%clk 0:02:57.5]} 6... Qc7 {[%clk
0:02:43.4]} 7. O-O {[%clk 0:02:57.5]} 7... b5 {[%clk 0:02:38.8]} 8. Nxc6 {[%clk
0:02:51.8]} 8... dxc6 {[%clk 0:02:38]} 9. e5 {[%clk 0:02:52.1]} 9... Bb7 {[%clk
0:02:35.4]} 10. Qe2 {[%clk 0:02:50]} 10... Ne7 {[%clk 0:02:30.1]} 11. Nc3 {[%clk
0:02:48.8]} 11... Nd5 {[%clk 0:02:29.5]} 12. a4 {[%clk 0:02:47.5]} 12... b4
{[%clk 0:02:25.3]} 13. Ne4 {[%clk 0:02:38.7]} 13... Qxe5 {[%clk 0:02:21.5]} 14.
c4 {[%clk 0:02:34.1]} 14... bxc3 {[%clk 0:02:04]} 15. bxc3 {[%clk 0:02:34.2]}
15... Be7 {[%clk 0:01:53.5]} 16. Rb1 {[%clk 0:02:34]} 16... Qc7 {[%clk
0:01:35.5]} 17. c4 {[%clk 0:02:32.9]} 17... Nf6 {[%clk 0:01:34.8]} 18. Bf4
{[%clk 0:02:16.6]} 18... e5 {[%clk 0:01:32.9]} 19. Bxe5 {[%clk 0:02:10.6]} 19...
Qxe5 {[%clk 0:01:33.8]} 20. Nxf6+ {[%clk 0:02:11]} 20... Bxf6 {[%clk 0:01:23.2]}
21. Qxe5+ {[%clk 0:02:06.6]} 21... Bxe5 {[%clk 0:01:23.3]} 22. Rxb7 {[%clk
0:01:59.1]} 22... O-O {[%clk 0:01:18.6]} 23. Bxc6 {[%clk 0:01:58.7]} 23... Rab8
{[%clk 0:01:14.1]} 24. Rfb1 {[%clk 0:01:56.6]} 24... Rxb7 {[%clk 0:01:01.9]} 25.
Rxb7 {[%clk 0:01:57.5]} 25... Bd4 {[%clk 0:00:54.4]} 26. Bd5 {[%clk 0:01:54.8]}
26... g5 {[%clk 0:00:52.2]} 27. Rc7 {[%clk 0:01:50.3]} 27... Kg7 {[%clk
0:00:43.1]} 28. c5 {[%clk 0:01:50.2]} 28... Kf6 {[%clk 0:00:38.7]} 29. c6 {[%clk
0:01:48.1]} 29... Ke5 {[%clk 0:00:27.8]} 30. Rxf7 {[%clk 0:01:32]} 30... Rxf7
{[%clk 0:00:18.8]} 31. Bxf7 {[%clk 0:01:32.9]} 31... Kd6 {[%clk 0:00:19.2]} 32.
Bc4 {[%clk 0:01:33.5]} 32... a5 {[%clk 0:00:16.2]} 33. Bb5 {[%clk 0:01:33.8]}
33... Be5 {[%clk 0:00:12]} 34. Kg2 {[%clk 0:01:33.3]} 34... Ke6 {[%clk
0:00:11.6]} 35. h3 {[%clk 0:01:31]} 35... h6 {[%clk 0:00:10.2]} 36. Kf3 {[%clk
0:01:31.2]} 36... Bc7 {[%clk 0:00:06.5]} 37. Kg4 {[%clk 0:01:30.3]} 37... Kf6
{[%clk 0:00:06.2]} 38. f4 {[%clk 0:01:23.8]} 38... gxf4 {[%clk 0:00:05.4]} 39.
gxf4 {[%clk 0:01:24.3]} 39... Bd6 {[%clk 0:00:06.1]} 40. Ba6 {[%clk 0:01:19.9]}
40... Bc7 {[%clk 0:00:05.9]} 41. Bc8 {[%clk 0:01:20.2]} 41... Bd6 {[%clk
0:00:05.7]} 42. Bd7 {[%clk 0:01:19.6]} 42... Bc7 {[%clk 0:00:05.8]} 43. f5
{[%clk 0:01:18.8]} 43... Bd6 {[%clk 0:00:06.1]} 44. Kf3 {[%clk 0:01:19.1]} 44...
Ke5 {[%clk 0:00:05.8]} 45. Ke3 {[%clk 0:01:19.6]} 45... Bc7 {[%clk 0:00:04.4]}
46. Kd3 {[%clk 0:01:19.2]} 46... Kf6 {[%clk 0:00:03.8]} 47. Kc4 {[%clk
0:01:19.4]} 47... Ke5 {[%clk 0:00:02.7]} 48. Kb5 {[%clk 0:01:19.9]} 48... Bd8
{[%clk 0:00:02.7]} 49. Ka6 {[%clk 0:01:20.3]} 49... Kd6 {[%clk 0:00:03.2]} 50.
Kb7 {[%clk 0:01:21]} 1-0

[Event "Early-Titled-Tuesday-Blitz-July-09-2024"]
[Site "Chess.com"]
[Date "2024.07.09"]
[Round "5"]
[White "Lupul_Cenusiu"]
[Black "Barbix1"]
[Result "0-1"]
[WhiteElo "2680"]
[BlackElo "2375"]
[TimeControl "180+1"]
[EndTime "8:57:33 PDT"]
[Termination "Barbix1 won on time"]

1. e4 {[%clk 0:03:00.9]} 1... c5 {[%clk 0:02:57.9]} 2. Nc3 {[%clk 0:03:00.7]}
2... e6 {[%clk 0:02:53.1]} 3. f4 {[%clk 0:03:00.2]} 3... Nc6 {[%clk 0:02:46.5]}
4. Nf3 {[%clk 0:02:59.6]} 4... g6 {[%clk 0:02:45.4]} 5. Bb5 {[%clk 0:02:59.8]}
5... Bg7 {[%clk 0:02:45]} 6. Bxc6 {[%clk 0:02:59.5]} 6... dxc6 {[%clk
0:02:34.7]} 7. O-O {[%clk 0:02:59.5]} 7... Nf6 {[%clk 0:02:33.1]} 8. d3 {[%clk
0:02:59.8]} 8... O-O {[%clk 0:02:32.3]} 9. Be3 {[%clk 0:02:58.2]} 9... b6 {[%clk
0:02:31.6]} 10. h3 {[%clk 0:02:58.8]} 10... a5 {[%clk 0:02:29.3]} 11. Ne5 {[%clk
0:02:59]} 11... Qc7 {[%clk 0:02:26.1]} 12. Qf3 {[%clk 0:02:51.4]} 12... Ba6
{[%clk 0:02:25]} 13. Rad1 {[%clk 0:02:24.1]} 13... Rad8 {[%clk 0:02:16]} 14. b3
{[%clk 0:02:24.1]} 14... Nd7 {[%clk 0:01:59.2]} 15. Nxd7 {[%clk 0:02:24.1]}
15... Rxd7 {[%clk 0:01:59.6]} 16. Na4 {[%clk 0:02:24.4]} 16... Bd4 {[%clk
0:01:38.7]} 17. f5 {[%clk 0:01:53.1]} 17... exf5 {[%clk 0:01:34.3]} 18. exf5
{[%clk 0:01:53.4]} 18... Qe5 {[%clk 0:01:31.4]} 19. Rde1 {[%clk 0:01:44.1]}
19... b5 {[%clk 0:01:24.7]} 20. fxg6 {[%clk 0:01:03.8]} 20... hxg6 {[%clk
0:01:20.6]} 21. Bf2 {[%clk 0:00:59]} 21... Qd6 {[%clk 0:00:52.6]} 22. Nb6 {[%clk
0:00:22.1]} 22... Rb7 {[%clk 0:00:52.3]} 23. Bxd4 {[%clk 0:00:04.1]} 23... Qxd4+
{[%clk 0:00:41.6]} 24. Kh1 {[%clk 0:00:04.3]} 24... Rxb6 {[%clk 0:00:42]} 25.
Re8 {[%clk 0:00:04.5]} 25... Qd7 {[%clk 0:00:28.7]} 26. Rxf8+ {[%clk 0:00:01.5]}
26... Kxf8 {[%clk 0:00:29.6]} 27. Qf4 {[%clk 0:00:01.8]} 27... Kg8 {[%clk
0:00:26.2]} 0-1

[Event "Early-Titled-Tuesday-Blitz-July-09-2024"]
[Site "Chess.com"]
[Date "2024.07.09"]
[Round "5"]
[White "Gyulamiryan-koryun"]
[Black "kuzol"]
[Result "0-1"]
[WhiteElo "1880"]
[BlackElo "2511"]
[TimeControl "180+1"]
[EndTime "8:57:35 PDT"]
[Termination "kuzol won on time"]

1. d4 {[%clk 0:02:59.4]} 1... Nf6 {[%clk 0:02:59.5]} 2. c4 {[%clk 0:02:59.3]}
2... e6 {[%clk 0:03:00]} 3. Nc3 {[%clk 0:02:59.3]} 3... d5 {[%clk 0:03:00.9]} 4.
Nf3 {[%clk 0:02:59.2]} 4... Be7 {[%clk 0:03:00.8]} 5. Bg5 {[%clk 0:02:58.6]}
5... Ne4 {[%clk 0:03:00.6]} 6. Bxe7 {[%clk 0:02:55.9]} 6... Qxe7 {[%clk
0:03:01.5]} 7. e3 {[%clk 0:02:54.6]} 7... c6 {[%clk 0:03:01.2]} 8. Bd3 {[%clk
0:02:53.7]} 8... f5 {[%clk 0:03:01.4]} 9. O-O {[%clk 0:02:53]} 9... O-O {[%clk
0:03:01.1]} 10. Ne5 {[%clk 0:02:52.7]} 10... Nd7 {[%clk 0:03:00.9]} 11. f4
{[%clk 0:02:50.6]} 11... Nxe5 {[%clk 0:03:00.6]} 12. fxe5 {[%clk 0:02:50]} 12...
Qg5 {[%clk 0:03:00.6]} 13. Qe2 {[%clk 0:02:46.5]} 13... Bd7 {[%clk 0:02:54.4]}
14. Rf4 {[%clk 0:02:10.1]} 14... Qh6 {[%clk 0:02:44.8]} 15. Raf1 {[%clk
0:01:57.8]} 15... g5 {[%clk 0:02:44.6]} 16. R4f3 {[%clk 0:01:55.2]} 16... g4
{[%clk 0:02:19.5]} 17. Rf4 {[%clk 0:01:55]} 17... Ng5 {[%clk 0:02:19.8]} 18.
cxd5 {[%clk 0:01:40.4]} 18... cxd5 {[%clk 0:02:20.7]} 19. Bb5 {[%clk 0:01:37.5]}
19... Bxb5 {[%clk 0:01:52.1]} 20. Qxb5 {[%clk 0:01:35.6]} 20... Qg7 {[%clk
0:01:40.2]} 21. Nxd5 {[%clk 0:01:16.4]} 21... exd5 {[%clk 0:01:36.2]} 22. Qxd5+
{[%clk 0:01:15.4]} 22... Kh8 {[%clk 0:01:17.8]} 23. Rxf5 {[%clk 0:01:08.3]}
23... Nf3+ {[%clk 0:01:11.3]} 24. R5xf3 {[%clk 0:00:17]} 24... gxf3 {[%clk
0:01:10.8]} 25. Rxf3 {[%clk 0:00:17.2]} 25... Rxf3 {[%clk 0:01:10.4]} 26. Qxf3
{[%clk 0:00:18.1]} 26... Rf8 {[%clk 0:01:09.9]} 27. Qe4 {[%clk 0:00:17.1]} 27...
Qg6 {[%clk 0:01:07]} 28. Qxg6 {[%clk 0:00:10.7]} 28... hxg6 {[%clk 0:01:07.9]}
29. g4 {[%clk 0:00:04.1]} 29... g5 {[%clk 0:01:07.2]} 30. Kg2 {[%clk 0:00:04.2]}
30... Kg7 {[%clk 0:01:06.8]} 31. Kg3 {[%clk 0:00:04.6]} 31... Kg6 {[%clk
0:01:07.1]} 32. d5 {[%clk 0:00:04.3]} 32... Re8 {[%clk 0:01:01.5]} 33. e6 {[%clk
0:00:04.3]} 33... Kf6 {[%clk 0:01:01.3]} 34. e4 {[%clk 0:00:02.6]} 34... Ke5
{[%clk 0:00:58.7]} 35. Kf3 {[%clk 0:00:02.1]} 35... Rf8+ {[%clk 0:00:52.3]} 36.
Ke3 {[%clk 0:00:02.6]} 36... Rf4 {[%clk 0:00:52.5]} 37. e7 {[%clk 0:00:02.4]}
37... Rxe4+ {[%clk 0:00:52.8]} 38. Kd3 {[%clk 0:00:03]} 38... Kxd5 {[%clk
0:00:53.7]} 0-1

[Event "Early-Titled-Tuesday-Blitz-July-09-2024"]
[Site "Chess.com"]
[Date "2024.07.09"]
[Round "5"]
[White "elis06"]
[Black "Sic_Transit_GM"]
[Result "0-1"]
[WhiteElo "2414"]
[BlackElo "2592"]
[TimeControl "180+1"]
[EndTime "8:57:35 PDT"]
[Termination "Sic_Transit_GM won by checkmate"]

1. d4 {[%clk 0:03:00.9]} 1... d5 {[%clk 0:02:59.9]} 2. c4 {[%clk 0:03:00.8]}
2... dxc4 {[%clk 0:02:59.3]} 3. Nf3 {[%clk 0:03:00.3]} 3... Nf6 {[%clk 0:02:59]}
4. e3 {[%clk 0:03:00.2]} 4... Bg4 {[%clk 0:02:59.5]} 5. Bxc4 {[%clk 0:02:59.5]}
5... e6 {[%clk 0:02:59.1]} 6. Nc3 {[%clk 0:02:57.8]} 6... a6 {[%clk 0:02:58.9]}
7. h3 {[%clk 0:02:57.8]} 7... Bh5 {[%clk 0:02:58.7]} 8. g4 {[%clk 0:02:51.5]}
8... Bg6 {[%clk 0:02:58.5]} 9. Ne5 {[%clk 0:02:45.4]} 9... Bd6 {[%clk 0:02:59]}
10. Bd2 {[%clk 0:02:39.4]} 10... Nbd7 {[%clk 0:02:45.8]} 11. Nxg6 {[%clk
0:02:36.4]} 11... hxg6 {[%clk 0:02:45.4]} 12. Qe2 {[%clk 0:02:34.7]} 12... e5
{[%clk 0:02:29.7]} 13. O-O-O {[%clk 0:02:33.6]} 13... b5 {[%clk 0:02:23.2]} 14.
Bb3 {[%clk 0:02:33.1]} 14... O-O {[%clk 0:02:21.2]} 15. Kb1 {[%clk 0:02:28.8]}
15... c5 {[%clk 0:02:19.3]} 16. dxc5 {[%clk 0:02:26.3]} 16... Nxc5 {[%clk
0:02:15.5]} 17. Bc2 {[%clk 0:02:26.1]} 17... b4 {[%clk 0:02:02.2]} 18. Na4
{[%clk 0:02:20.4]} 18... b3 {[%clk 0:02:02.5]} 19. axb3 {[%clk 0:02:15.8]} 19...
Nxa4 {[%clk 0:01:45]} 20. bxa4 {[%clk 0:02:15.4]} 20... Qb6 {[%clk 0:01:43.3]}
21. Bc3 {[%clk 0:02:13]} 21... Rfc8 {[%clk 0:00:56.7]} 22. Qd2 {[%clk
0:02:01.5]} 22... Ba3 {[%clk 0:00:39.5]} 23. Ka2 {[%clk 0:01:52.2]} 23... Rab8
{[%clk 0:00:29.7]} 24. Kxa3 {[%clk 0:01:27.8]} 24... Ne4 {[%clk 0:00:26.7]} 25.
Qc1 {[%clk 0:00:49]} 25... Nxc3 {[%clk 0:00:23.1]} 26. bxc3 {[%clk 0:00:48.2]}
26... Rxc3+ {[%clk 0:00:22.2]} 27. Ka2 {[%clk 0:00:48.4]} 27... Qe6+ {[%clk
0:00:20.5]} 28. Ka1 {[%clk 0:00:46.8]} 28... Qc4 {[%clk 0:00:19.8]} 29. Rd2
{[%clk 0:00:45.4]} 29... Qb4 {[%clk 0:00:12.3]} 30. Rhd1 {[%clk 0:00:24.1]}
30... Ra3+ {[%clk 0:00:11.9]} 31. Qxa3 {[%clk 0:00:24.2]} 31... Qxa3# {[%clk
0:00:12.8]} 0-1

[Event "Early-Titled-Tuesday-Blitz-July-09-2024"]
[Site "Chess.com"]
[Date "2024.07.09"]
[Round "5"]
[White "FM_Kappeler"]
[Black "MarijaKuznecova"]
[Result "0-1"]
[WhiteElo "2266"]
[BlackElo "2425"]
[TimeControl "180+1"]
[EndTime "8:57:35 PDT"]
[Termination "MarijaKuznecova won by resignation"]

1. d4 {[%clk 0:03:00.9]} 1... Nf6 {[%clk 0:02:59.7]} 2. c4 {[%clk 0:03:00.6]}
2... c5 {[%clk 0:03:00.3]} 3. d5 {[%clk 0:03:00.4]} 3... b5 {[%clk 0:03:00.9]}
4. cxb5 {[%clk 0:03:00.6]} 4... a6 {[%clk 0:03:01.6]} 5. f3 {[%clk 0:03:00.6]}
5... axb5 {[%clk 0:02:57.9]} 6. e4 {[%clk 0:03:00.5]} 6... d6 {[%clk 0:02:54.4]}
7. Bxb5+ {[%clk 0:02:58.9]} 7... Nbd7 {[%clk 0:02:55.1]} 8. Ne2 {[%clk
0:02:55.8]} 8... g6 {[%clk 0:02:55.5]} 9. O-O {[%clk 0:02:55.3]} 9... Bg7 {[%clk
0:02:55.4]} 10. a4 {[%clk 0:02:54.1]} 10... O-O {[%clk 0:02:55.6]} 11. Nec3
{[%clk 0:02:53.1]} 11... Ba6 {[%clk 0:02:55.7]} 12. Na3 {[%clk 0:02:52.4]} 12...
Nb6 {[%clk 0:02:52.2]} 13. Rb1 {[%clk 0:02:34.1]} 13... Bxb5 {[%clk 0:02:45.7]}
14. Naxb5 {[%clk 0:02:32.9]} 14... Nfd7 {[%clk 0:02:44.9]} 15. Be3 {[%clk
0:02:23.2]} 15... Ne5 {[%clk 0:02:43.4]} 16. b3 {[%clk 0:02:17.8]} 16... Qd7
{[%clk 0:02:33.3]} 17. Qc2 {[%clk 0:02:09.3]} 17... Rfc8 {[%clk 0:02:31.8]} 18.
h3 {[%clk 0:02:04]} 18... Qb7 {[%clk 0:02:29.5]} 19. f4 {[%clk 0:02:00.2]} 19...
Ned7 {[%clk 0:02:30]} 20. Kh1 {[%clk 0:01:50.3]} 20... c4 {[%clk 0:02:23.3]} 21.
b4 {[%clk 0:01:37.7]} 21... Nxa4 {[%clk 0:02:17.6]} 22. Nxd6 {[%clk 0:01:35.1]}
22... exd6 {[%clk 0:02:16.3]} 23. Nxa4 {[%clk 0:01:34.1]} 23... Qa6 {[%clk
0:02:04.2]} 24. Nc3 {[%clk 0:01:29.6]} 24... Qa3 {[%clk 0:02:03.5]} 25. Nb5
{[%clk 0:01:16.5]} 25... Qxe3 {[%clk 0:02:02.7]} 26. Nxd6 {[%clk 0:01:14]} 26...
Rc7 {[%clk 0:02:01.4]} 27. e5 {[%clk 0:01:10.1]} 27... Bf8 {[%clk 0:01:42.4]}
28. Nxf7 {[%clk 0:01:04.2]} 28... Kxf7 {[%clk 0:01:41.3]} 29. e6+ {[%clk
0:01:04.2]} 29... Kg8 {[%clk 0:01:41.4]} 30. exd7 {[%clk 0:01:03]} 30... Rxd7
{[%clk 0:01:38.1]} 31. Qxc4 {[%clk 0:00:57.1]} 31... Bd6 {[%clk 0:01:38.4]} 32.
Rbe1 {[%clk 0:00:52.5]} 32... Qg3 {[%clk 0:01:37.8]} 33. Re6 {[%clk 0:00:46]}
33... Rf8 {[%clk 0:01:29.5]} 34. Qc6 {[%clk 0:00:39.7]} 34... Rfd8 {[%clk
0:01:07.1]} 35. Re8+ {[%clk 0:00:22.1]} 35... Kg7 {[%clk 0:00:54.4]} 36. Rxd8
{[%clk 0:00:20.6]} 36... Rxd8 {[%clk 0:00:55.3]} 37. Qc4 {[%clk 0:00:13.9]}
37... Rf8 {[%clk 0:00:52.7]} 38. Qc6 {[%clk 0:00:07.9]} 38... Bxf4 {[%clk
0:00:51.3]} 39. Qc3+ {[%clk 0:00:05.1]} 39... Qxc3 {[%clk 0:00:50.4]} 0-1

[Event "Early-Titled-Tuesday-Blitz-July-09-2024"]
[Site "Chess.com"]
[Date "2024.07.09"]
[Round "5"]
[White "noblerone"]
[Black "mapleaff"]
[Result "0-1"]
[WhiteElo "2509"]
[BlackElo "2357"]
[TimeControl "180+1"]
[EndTime "8:57:36 PDT"]
[Termination "mapleaff won on time"]

1. d4 {[%clk 0:02:46]} 1... Nf6 {[%clk 0:02:55.6]} 2. Nf3 {[%clk 0:02:46.2]}
2... d5 {[%clk 0:02:53.1]} 3. Bg5 {[%clk 0:02:43.3]} 3... Ne4 {[%clk 0:02:45.4]}
4. Bf4 {[%clk 0:02:42.6]} 4... c5 {[%clk 0:02:38.8]} 5. e3 {[%clk 0:02:39.7]}
5... Qb6 {[%clk 0:02:34.3]} 6. Nc3 {[%clk 0:02:38.5]} 6... e6 {[%clk 0:02:19.3]}
7. Bxb8 {[%clk 0:02:29.8]} 7... Rxb8 {[%clk 0:02:05.9]} 8. Bb5+ {[%clk
0:02:27.3]} 8... Kd8 {[%clk 0:01:56.6]} 9. Bd3 {[%clk 0:01:32.4]} 9... Qxb2
{[%clk 0:01:14.7]} 10. Nxe4 {[%clk 0:01:21.8]} 10... dxe4 {[%clk 0:01:13.9]} 11.
Bxe4 {[%clk 0:01:20.5]} 11... Qc3+ {[%clk 0:01:11.9]} 12. Ke2 {[%clk 0:01:08.1]}
12... f5 {[%clk 0:00:53.9]} 13. dxc5+ {[%clk 0:00:40.2]} 13... Kc7 {[%clk
0:00:52.7]} 14. Bd3 {[%clk 0:00:32.3]} 14... Bxc5 {[%clk 0:00:49.7]} 15. Rb1
{[%clk 0:00:28.3]} 15... Rd8 {[%clk 0:00:38.8]} 16. Rb3 {[%clk 0:00:23.7]} 16...
Qf6 {[%clk 0:00:38.5]} 17. Qb1 {[%clk 0:00:20.3]} 17... b6 {[%clk 0:00:35.5]}
18. Rd1 {[%clk 0:00:19.2]} 18... e5 {[%clk 0:00:29]} 19. e4 {[%clk 0:00:14.2]}
19... g5 {[%clk 0:00:16.8]} 20. Kf1 {[%clk 0:00:08.8]} 20... g4 {[%clk
0:00:14.1]} 21. Nd2 {[%clk 0:00:08.3]} 21... Qh4 {[%clk 0:00:11.7]} 22. g3
{[%clk 0:00:04]} 22... Qxh2 {[%clk 0:00:11.2]} 0-1

[Event "Early-Titled-Tuesday-Blitz-July-09-2024"]
[Site "Chess.com"]
[Date "2024.07.09"]
[Round "5"]
[White "BlackBoarder"]
[Black "myburger"]
[Result "1-0"]
[WhiteElo "2729"]
[BlackElo "2539"]
[TimeControl "180+1"]
[EndTime "8:57:38 PDT"]
[Termination "BlackBoarder won by resignation"]

1. d4 {[%clk 0:03:00.9]} 1... Nf6 {[%clk 0:02:57.8]} 2. Nc3 {[%clk 0:02:55.8]}
2... d6 {[%clk 0:02:56.7]} 3. e4 {[%clk 0:02:51.6]} 3... g6 {[%clk 0:02:56.4]}
4. h4 {[%clk 0:02:50.7]} 4... h5 {[%clk 0:02:55.2]} 5. Be2 {[%clk 0:02:50]} 5...
Bg7 {[%clk 0:02:54.9]} 6. Nf3 {[%clk 0:02:50]} 6... Bg4 {[%clk 0:02:51.8]} 7.
Ng5 {[%clk 0:02:49.7]} 7... Nbd7 {[%clk 0:02:47.9]} 8. f3 {[%clk 0:02:49]} 8...
c5 {[%clk 0:02:35.7]} 9. d5 {[%clk 0:02:43.2]} 9... Ne5 {[%clk 0:02:31.7]} 10.
fxg4 {[%clk 0:02:41.8]} 10... Nfxg4 {[%clk 0:02:29.7]} 11. Bf4 {[%clk
0:02:29.5]} 11... Qb6 {[%clk 0:02:14]} 12. Bb5+ {[%clk 0:02:15]} 12... Kf8
{[%clk 0:02:07.2]} 13. a4 {[%clk 0:01:33.5]} 13... Qa5 {[%clk 0:01:51.9]} 14.
O-O {[%clk 0:01:28.8]} 14... c4 {[%clk 0:01:43.7]} 15. Qe2 {[%clk 0:01:20.1]}
15... a6 {[%clk 0:01:34.1]} 16. Bxe5 {[%clk 0:01:07.8]} 16... Nxe5 {[%clk
0:01:29.2]} 17. Bxc4 {[%clk 0:00:27.8]} 17... Qc5+ {[%clk 0:01:28.3]} 18. Kh1
{[%clk 0:00:28.3]} 18... Qxc4 {[%clk 0:01:23.6]} 19. Rxf7+ {[%clk 0:00:18.2]}
19... Kg8 {[%clk 0:01:20]} 20. Qf2 {[%clk 0:00:11.1]} 20... Qc5 {[%clk
0:01:06.3]} 21. Qxc5 {[%clk 0:00:10.5]} 21... dxc5 {[%clk 0:01:06.4]} 22. Rxe7
{[%clk 0:00:11]} 22... Bf6 {[%clk 0:01:03.7]} 23. Rxb7 {[%clk 0:00:11]} 23...
Bxg5 {[%clk 0:00:58.1]} 24. hxg5 {[%clk 0:00:10.6]} 24... Rh7 {[%clk 0:00:59]}
25. Rxh7 {[%clk 0:00:10.3]} 25... Kxh7 {[%clk 0:00:58.6]} 26. Rf1 {[%clk
0:00:10.9]} 26... Rb8 {[%clk 0:00:55.9]} 27. b3 {[%clk 0:00:11.2]} 27... c4
{[%clk 0:00:55.6]} 28. Rb1 {[%clk 0:00:10.8]} 28... cxb3 {[%clk 0:00:54.7]} 29.
Rxb3 {[%clk 0:00:11.1]} 29... Rf8 {[%clk 0:00:55]} 30. Rb7+ {[%clk 0:00:11.4]}
30... Kg8 {[%clk 0:00:54.9]} 31. Kh2 {[%clk 0:00:09.8]} 31... Ng4+ {[%clk
0:00:55.1]} 32. Kg3 {[%clk 0:00:10.3]} 32... Ne3 {[%clk 0:00:54.3]} 33. d6
{[%clk 0:00:09.2]} 33... Nf1+ {[%clk 0:00:53]} 34. Kh3 {[%clk 0:00:08.4]} 34...
Rd8 {[%clk 0:00:45.1]} 35. e5 {[%clk 0:00:08.1]} 35... Re8 {[%clk 0:00:40.5]}
36. d7 {[%clk 0:00:07.8]} 36... Rd8 {[%clk 0:00:39.8]} 37. e6 {[%clk 0:00:08.4]}
37... Kf8 {[%clk 0:00:40.2]} 38. Nd5 {[%clk 0:00:08.7]} 1-0